bitfinex/quotes_SOLUSD_20250223
["timestamp","ask_amount","ask_price","bid_price","bid_amount"]
[1740292793281,0.03,171.46,171.45,148.99236562]
[1740292793958,0.03,171.46,171.45,143.15976562]
[1740292798164,0.03,171.46,171.45,112.38478271]
[1740292798479,0.03,171.46,171.45,18.64964886]
[1740292799783,0.03,171.46,171.45,30.48478271]
[1740292802078,0.03,171.46,171.45,18.64964886]
[1740292803781,0.03,171.46,171.41,13.48573385]
[1740292803963,11.83513385,171.45,171.4,22.31683385]
[1740292804164,11.83513385,171.45,171.4,16.15813385]
[1740292804885,11.83513385,171.45,171.41,18.64964886]
[1740292805090,11.86513385,171.46,171.41,18.64964886]
[1740292805587,11.86513385,171.46,171.41,30.48478271]
[1740292805765,5.8326,171.45,171.41,30.48478271]
[1740292807471,5.8326,171.45,171.4,0.063]
[1740292807787,5.8326,171.45,171.41,18.64964886]
[1740292807985,11.83513385,171.44,171.4,0.063]
[1740292808689,11.83513385,171.44,171.4,20.063]
[1740292810195,5.8332,171.43,171.4,20.063]
[1740292812203,5.8332,171.43,171.4,11.89813385]
[1740292812484,5.8332,171.43,171.4,0.063]
[1740292812693,5.8332,171.43,171.4,11.89813385]
[1740292813188,107.41663385,171.45,171.4,11.89813385]
[1740292813397,5.8329,171.44,171.4,11.89813385]
[1740292814993,5.8329,171.44,171.41,18.64964886]
[1740292815497,86.8327,171.45,171.41,18.64964886]
[1740292815675,86.8327,171.45,171.41,11.83513385]
[1740292815871,81.0,171.45,171.41,30.48478271]
[1740292816099,81.0,171.45,171.43,11.83513385]
[1740292817371,81.0,171.45,171.44,11.83513385]
[1740292817599,0.03,171.46,171.44,11.83513385]
[1740292819276,0.03,171.46,171.45,30.48478271]
[1740292819692,0.03,171.46,171.45,36.31738271]
[1740292822501,0.03,171.46,171.45,165.55791811]
[1740292822689,0.03,171.46,171.45,166.55791811]
[1740292827682,0.03,171.55,171.48,20.0]
[1740292827897,0.03,171.55,171.52,11.83513385]
[1740292832108,0.03,171.55,171.53,18.64964886]
[1740292832309,0.03,171.55,171.53,30.48478271]
[1740292832616,0.03,171.55,171.54,30.48478271]
[1740292833113,0.03,171.55,171.54,18.64964886]
[1740292838588,0.03,171.55,171.51,11.83513385]
[1740292840013,5.8592,171.55,171.52,18.64964886]
[1740292841514,0.03,171.55,171.52,30.48478271]
[1740292841907,0.03,171.55,171.52,18.64964886]
[1740292845113,0.03,171.55,171.52,30.48478271]
[1740292851022,0.03,171.55,171.54,18.64964886]
[1740292851527,0.03,171.55,171.54,30.48478271]
[1740292852901,0.03,171.55,171.54,36.31428271]
[1740292856920,0.03,171.55,171.54,30.48478271]
[1740292860515,0.03,171.55,171.51,11.83513385]
[1740292861425,5.8592,171.55,171.52,18.64964886]
[1740292862415,5.8592,171.55,171.52,11.83513385]
[1740292863529,0.03,171.55,171.52,11.83513385]
[1740292864814,0.03,171.55,171.52,18.64964886]
[1740292866732,0.03,171.55,171.51,11.83513385]
[1740292866936,0.03,171.55,171.49,19.08128411]
[1740292866937,11.86513385,171.55,171.49,19.08128411]
[1740292867113,11.86513385,171.55,171.5,18.64964886]
[1740292868938,5.8295,171.54,171.5,18.64964886]
[1740292869935,17.66463385,171.54,171.5,18.64964886]
[1740292870128,17.66463385,171.54,171.49,11.83513385]
[1740292877255,17.66463385,171.54,171.49,18.64964886]
[1740292877864,17.66463385,171.54,171.48,14.68328249]
[1740292879355,17.66463385,171.54,171.48,11.83513385]
[1740292880954,17.66463385,171.54,171.49,11.83513385]
[1740292887042,5.8295,171.54,171.49,11.83513385]
[1740292891959,17.66463385,171.54,171.49,11.83513385]
[1740292892138,11.83513385,171.53,171.49,18.64964886]
[1740292895040,5.8302,171.52,171.49,18.64964886]
[1740292896359,5.8298,171.53,171.49,30.48478271]
[1740292902146,5.8298,171.53,171.49,18.64964886]
[1740292909157,14.6038,171.54,171.49,30.48478271]
[1740292909357,26.43893385,171.54,171.49,30.48478271]
[1740292912974,32.26843385,171.54,171.49,30.48478271]
[1740292914775,5.8595,171.54,171.49,30.48478271]
[1740292915149,5.8595,171.54,171.52,11.83513385]
[1740292915345,0.03,171.54,171.52,11.83513385]
[1740292918276,0.03,171.54,171.5,11.83513385]
[1740292918453,11.86513385,171.54,171.5,20.0]
[1740292918651,0.03,171.54,171.51,38.64964886]
[1740292918871,0.03,171.54,171.52,11.83513385]
[1740292919875,0.03,171.54,171.51,38.64964886]
[1740292920088,0.03,171.54,171.52,11.83513385]
[1740292921380,0.03,171.54,171.51,50.48478271]
[1740292922657,0.03,171.54,171.52,11.83513385]
[1740292927167,0.03,171.54,171.51,38.64964886]
[1740292927473,0.03,171.54,171.52,11.83513385]
[1740292940090,0.03,171.54,171.53,11.83513385]
[1740292940284,0.03,171.54,171.53,30.48478271]
[1740292942299,0.03,171.54,171.53,36.31458271]
[1740292947082,0.03,171.54,171.53,30.48478271]
[1740292949697,0.03,171.54,171.51,11.83513385]
[1740292949901,0.03,171.54,171.49,93.73513385]
[1740292950100,11.86513385,171.54,171.49,93.73513385]
[1740292950304,11.86513385,171.54,171.49,11.83513385]
[1740292950305,0.03,171.54,171.49,11.83513385]
[1740292951523,5.8595,171.54,171.49,11.83513385]
[1740292951726,5.8595,171.54,171.5,11.83513385]
[1740292952818,92.83513385,171.53,171.48,11.83513385]
[1740292953023,92.83513385,171.53,171.47,11.83513385]
[1740292953818,5.8302,171.52,171.47,11.83513385]
[1740292954168,5.8302,171.52,171.46,20.32384886]
[1740292954169,11.83513385,171.51,171.46,11.89813385]
[1740292954339,92.83513385,171.51,171.46,11.89813385]
[1740292955520,81.0,171.51,171.46,11.89813385]
[1740292956031,86.8308,171.51,171.47,11.83513385]
[1740292957225,81.0,171.51,171.48,11.83513385]
[1740292957434,81.0,171.51,171.49,11.83513385]
[1740292959805,81.0,171.51,171.48,11.83513385]
[1740292960133,5.8302,171.52,171.48,11.83513385]
[1740292960513,5.8298,171.53,171.48,11.83513385]
[1740292962231,98.69473385,171.54,171.49,11.83513385]
[1740292964632,86.8596,171.54,171.49,11.83513385]
[1740292964832,81.03,171.54,171.5,11.83513385]
[1740292965032,81.03,171.54,171.52,11.83513385]
[1740292965233,0.03,171.54,171.52,11.83513385]
[1740292966019,0.03,171.54,171.53,11.83513385]
[1740292966423,0.03,171.54,171.53,36.31458271]
[1740292968440,0.03,171.54,171.53,30.48478271]
[1740292969222,0.03,171.54,171.53,18.64964886]
[1740292969431,0.03,171.54,171.53,30.48478271]
[1740292969744,0.03,171.54,171.53,18.64964886]
[1740292969922,0.03,171.54,171.51,31.83513385]
[1740292970117,11.86513385,171.54,171.48,81.9]
[1740292970324,17.66493385,171.53,171.48,11.83513385]
[1740292970625,11.83513385,171.52,171.48,18.64964886]
[1740292970939,0.03,171.54,171.5,11.83513385]
[1740292971117,0.03,171.54,171.51,11.83513385]
[1740292971444,0.03,171.54,171.52,11.83513385]
[1740292972527,0.03,171.54,171.51,31.83513385]
[1740292973245,0.03,171.54,171.51,20.0]
[1740292973549,0.03,171.54,171.51,18.64964886]
[1740292973930,0.03,171.54,171.5,11.83513385]
[1740292974127,11.86513385,171.54,171.49,11.83513385]
[1740292974834,5.8298,171.53,171.49,11.83513385]
[1740292980347,5.8595,171.54,171.49,11.83513385]
[1740292980842,5.8595,171.54,171.5,11.83513385]
[1740292981034,5.8595,171.54,171.51,11.83513385]
[1740292982550,5.8595,171.54,171.5,30.48478271]
[1740292986653,11.83513385,171.53,171.48,11.83513385]
[1740292987332,17.69463385,171.54,171.48,11.83513385]
[1740292987652,17.69463385,171.54,171.49,11.83513385]
[1740292987825,5.8595,171.54,171.49,11.83513385]
[1740292989052,17.69463385,171.54,171.48,11.83513385]
[1740292989444,17.19463385,171.54,171.48,11.83513385]
[1740292989946,11.83513385,171.52,171.47,18.64964886]
[1740292990934,5.8305,171.51,171.47,18.64964886]
[1740292991640,5.8305,171.51,171.47,30.48478271]
[1740292992362,5.8305,171.51,171.48,11.83513385]
[1740292993761,92.83513385,171.53,171.48,11.83513385]
[1740292993935,5.8302,171.52,171.48,11.83513385]
[1740292994266,5.8302,171.52,171.47,30.48478271]
[1740292995847,17.66533385,171.52,171.47,30.48478271]
[1740292996163,17.66533385,171.52,171.46,11.89813385]
[1740292996649,11.83513385,171.51,171.46,0.063]
[1740292996968,11.83513385,171.49,171.46,0.063]
[1740292997466,11.83513385,171.5,171.46,0.063]
[1740292997965,5.8312,171.49,171.46,0.063]
[1740292999562,92.83513385,171.51,171.46,0.063]
[1740292999768,5.8309,171.5,171.46,0.063]
[1740293000454,17.66603385,171.5,171.46,0.063]
[1740293002367,5.8309,171.5,171.46,0.063]
[1740293002540,5.8309,171.5,171.46,11.89813385]
[1740293004763,81.0,171.51,171.47,11.83513385]
[1740293005957,81.0,171.51,171.48,11.83513385]
[1740293006963,86.8307,171.51,171.47,11.83513385]
[1740293009848,86.8307,171.51,171.46,11.89813385]
[1740293010048,11.83513385,171.5,171.46,0.063]
[1740293010771,113.24223385,171.51,171.46,0.063]
[1740293011467,86.8307,171.51,171.46,31.89813385]
[1740293011849,86.8307,171.51,171.47,11.83513385]
[1740293015853,86.8307,171.51,171.46,31.89813385]
[1740293020977,86.8307,171.51,171.47,11.83513385]
[1740293024078,81.0,171.51,171.48,11.83513385]
[1740293026979,86.8305,171.51,171.48,11.83513385]
[1740293030283,86.8305,171.51,171.47,11.83513385]
[1740293030883,86.8305,171.51,171.46,50.54778271]
[1740293035082,86.8305,171.51,171.46,31.89813385]
[1740293036195,86.8305,171.51,171.46,20.063]
[1740293036395,86.8305,171.51,171.46,31.89813385]
[1740293037478,81.0,171.5,171.46,31.89813385]
[1740293038492,81.0,171.5,171.47,11.83513385]
[1740293039289,81.0,171.5,171.49,11.83513385]
[1740293042074,81.0,171.5,171.48,11.83513385]
[1740293045590,86.8309,171.5,171.48,11.83513385]
[1740293045997,86.8309,171.5,171.48,11.89813385]
[1740293046393,81.0,171.5,171.48,11.89813385]
[1740293046702,81.0,171.5,171.49,11.83513385]
[1740293048799,81.0,171.5,171.48,11.89813385]
[1740293048981,86.8309,171.5,171.48,0.063]
[1740293049373,5.8309,171.5,171.48,11.89813385]
[1740293050185,5.8302,171.52,171.48,11.89813385]
[1740293053101,5.8302,171.52,171.48,0.063]
[1740293054284,5.8302,171.52,171.48,11.89813385]
[1740293054482,5.8302,171.52,171.49,11.83513385]
[1740293054686,5.8302,171.52,171.5,11.83513385]
[1740293056483,81.0,171.53,171.51,11.83513385]
[1740293056687,81.0,171.53,171.52,11.83513385]
[1740293061305,0.03,171.54,171.52,11.83513385]
[1740293062491,0.03,171.54,171.53,11.83513385]
[1740293062695,0.03,171.54,171.53,30.48478271]
[1740293065002,0.03,171.54,171.53,36.31458271]
[1740293066820,0.03,171.54,171.53,37.93068271]
[1740293068717,0.03,171.55,171.53,37.93068271]
[1740293068926,80.09,171.58,171.57,11.83513385]
[1740293069127,80.09,171.58,171.56,11.83513385]
[1740293073031,5.8579,171.59,171.56,11.83513385]
[1740293074123,0.03,171.59,171.58,11.83513385]
[1740293079126,0.03,171.59,171.58,30.48478271]
[1740293096665,0.03,171.59,171.58,36.31288271]
[1740293097155,0.03,171.59,171.58,30.48478271]
[1740293098959,0.03,171.59,171.58,36.31288271]
[1740293099148,0.03,171.59,171.58,37.82718271]
[1740293101363,0.03,171.59,171.58,119.72718271]
[1740293102046,0.03,171.59,171.58,113.89908271]
[1740293102641,0.03,171.59,171.58,112.38478271]
[1740293103158,0.03,171.59,171.56,0.063]
[1740293103361,0.03,171.59,171.57,11.83513385]
[1740293103545,0.03,171.59,171.58,11.83513385]
[1740293105750,0.03,171.59,171.58,30.48478271]
[1740293105958,0.03,171.59,171.58,30.54778271]
[1740293111043,0.03,171.59,171.58,36.37588271]
[1740293119474,0.03,171.61,171.6,20.0]
[1740293119643,0.03,171.61,171.6,50.48478271]
[1740293119849,0.03,171.61,171.6,132.38478271]
[1740293120654,0.03,171.62,171.61,18.64964886]
[1740293120856,0.03,171.62,171.61,159.72531811]
[1740293121061,0.03,171.62,171.61,118.21188271]
[1740293121676,0.03,171.62,171.61,124.05188271]
[1740293122058,0.03,171.62,171.61,118.21188271]
[1740293123083,0.03,171.62,171.61,124.05188271]
[1740293123675,0.03,171.62,171.61,118.21188271]
[1740293124195,0.03,171.62,171.61,124.05188271]
[1740293124675,0.03,171.62,171.61,165.55241811]
[1740293125177,0.03,171.62,171.61,171.39241811]
[1740293125359,0.03,171.63,171.61,171.39241811]
[1740293125561,0.03,171.63,171.62,77.82531811]
[1740293126076,0.03,171.63,171.62,83.65211811]
[1740293129580,0.03,171.63,171.62,171.39211811]
[1740293129779,0.03,171.63,171.62,165.55211811]
[1740293133676,0.03,171.63,171.62,168.43301638]
[1740293140076,0.03,171.63,171.62,115.26568098]
[1740293140983,0.03,171.63,171.62,168.43301638]
[1740293141493,0.03,171.64,171.62,168.43301638]
[1740293141672,0.03,171.64,171.63,77.82531811]
[1740293142393,0.03,171.64,171.63,83.65171811]
[1740293143798,0.03,171.64,171.63,77.82531811]
[1740293144292,0.03,171.64,171.63,30.48478271]
[1740293146382,0.03,171.64,171.63,11.83513385]
[1740293159001,0.03,171.64,171.62,11.89813385]
[1740293159392,0.03,171.64,171.62,0.063]
[1740293160305,0.03,171.64,171.62,11.89813385]
[1740293162696,5.8561,171.64,171.62,11.89813385]
[1740293169231,5.8561,171.64,171.62,0.063]
[1740293169232,17.69123385,171.64,171.62,0.063]
[1740293169414,97.78123385,171.64,171.62,0.063]
[1740293169813,85.9461,171.64,171.62,0.063]
[1740293170493,85.9461,171.64,171.63,11.83513385]
[1740293170927,85.9461,171.64,171.62,11.89813385]
[1740293171126,85.9461,171.64,171.62,0.063]
[1740293182833,97.78123385,171.64,171.62,0.063]
[1740293184626,85.9461,171.64,171.62,0.063]
[1740293187624,11.83513385,171.63,171.62,0.063]
[1740293187809,11.83513385,171.63,171.58,0.063]
[1740293188411,11.83513385,171.62,171.58,0.063]
[1740293188829,5.8271,171.61,171.58,0.063]
[1740293189124,85.9171,171.61,171.58,0.063]
[1740293189329,85.9171,171.61,171.58,11.89813385]
[1740293190525,85.9171,171.61,171.58,0.063]
[1740293190726,97.75223385,171.61,171.58,0.063]
[1740293192832,85.9171,171.61,171.58,0.063]
[1740293194127,97.75223385,171.61,171.58,0.063]
[1740293196510,11.83513385,171.59,171.58,0.063]
[1740293198004,17.66293385,171.59,171.58,0.063]
[1740293199923,17.66293385,171.59,171.58,0.0001]
[1740293206034,18.66293385,171.59,171.58,0.0001]
[1740293206233,19.66293385,171.59,171.58,0.0001]
[1740293207018,17.66293385,171.59,171.58,0.0001]
[1740293212426,5.8278,171.59,171.58,0.0001]
[1740293219338,5.8271,171.61,171.58,0.0001]
[1740293220044,17.66223385,171.61,171.58,0.0001]
[1740293220950,11.83513385,171.59,171.58,0.0001]
[1740293221542,17.69293385,171.59,171.58,0.0001]
[1740293223637,5.8578,171.59,171.58,0.0001]
[1740293224349,0.03,171.59,171.58,0.0001]
[1740293224537,17.69293385,171.59,171.58,0.0001]
[1740293224938,5.8578,171.59,171.58,0.0001]
[1740293225657,0.03,171.59,171.58,0.0001]
[1740293232758,0.03,171.59,171.58,11.83523385]
[1740293233154,0.03,171.59,171.58,0.0001]
[1740293234446,11.86513385,171.59,171.58,0.0001]
[1740293234846,5.8578,171.59,171.58,0.0001]
[1740293236345,17.69293385,171.59,171.58,0.0001]
[1740293237352,18.69293385,171.59,171.58,0.0001]
[1740293238264,1.0,171.58,171.56,0.0001]
[1740293238449,12.83513385,171.57,171.56,0.0001]
[1740293239064,18.66363385,171.57,171.56,0.0001]
[1740293256679,17.66363385,171.57,171.56,0.0001]
[1740293257056,18.66363385,171.57,171.56,0.0001]
[1740293257879,17.66363385,171.57,171.56,0.0001]
[1740293258180,18.66363385,171.57,171.56,0.0001]
[1740293259162,17.66363385,171.57,171.56,0.0001]
[1740293260061,18.66363385,171.57,171.56,0.0001]
[1740293264081,37.31328271,171.57,171.56,0.0001]
[1740293264308,37.31328271,171.57,171.52,0.063]
[1740293264309,1.0,171.54,171.52,0.063]
[1740293264577,98.22511811,171.57,171.52,0.063]
[1740293264578,92.83513385,171.53,171.52,0.063]
[1740293264770,81.0,171.53,171.52,0.063]
[1740293264970,98.66493385,171.53,171.52,0.063]
[1740293269281,17.66493385,171.53,171.52,0.063]
[1740293271474,32.23963385,171.53,171.49,1.5775]
[1740293271675,11.83513385,171.52,171.49,1.5775]
[1740293272181,11.83513385,171.5,171.49,0.063]
[1740293272581,17.66603385,171.5,171.49,0.063]
[1740293276696,5.8309,171.5,171.49,0.063]
[1740293277080,5.8302,171.52,171.49,0.063]
[1740293277379,5.8302,171.52,171.49,13.43143385]
[1740293278202,5.8298,171.53,171.49,13.43143385]
[1740293278777,5.8298,171.53,171.49,1.5963]
[1740293279799,5.8298,171.53,171.49,13.43143385]
[1740293279989,26.40783385,171.56,171.51,11.83513385]
[1740293280190,5.8292,171.55,171.51,11.83513385]
[1740293281894,0.03,171.56,171.52,11.83513385]
[1740293282096,0.03,171.56,171.55,1.5396]
[1740293282399,81.03,171.56,171.55,13.37473385]
[1740293282776,0.03,171.56,171.55,13.37473385]
[1740293287204,0.03,171.56,171.55,1.5396]
[1740293287791,81.03,171.56,171.54,6.0775]
[1740293287997,81.03,171.56,171.51,13.37473385]
[1740293287998,5.8292,171.55,171.51,13.37473385]
[1740293288507,92.83513385,171.54,171.51,1.5396]
[1740293288685,81.0,171.53,171.51,1.5396]
[1740293289989,81.0,171.53,171.52,11.83513385]
[1740293293115,5.8589,171.56,171.52,11.83513385]
[1740293293319,5.8589,171.56,171.54,11.83513385]
[1740293294992,0.03,171.56,171.54,11.83513385]
[1740293295189,0.03,171.56,171.51,1.6026]
[1740293295190,0.03,171.56,171.55,11.83513385]
[1740293298694,0.03,171.56,171.54,11.83513385]
[1740293299296,0.03,171.56,171.55,11.83513385]
[1740293301120,0.03,171.56,171.54,11.83513385]
[1740293301503,0.03,171.56,171.53,11.83513385]
[1740293309743,0.03,171.56,171.52,11.89813385]
[1740293309905,11.83513385,171.54,171.52,0.063]
[1740293310920,92.83513385,171.53,171.52,0.063]
[1740293311227,11.83513385,171.53,171.52,0.063]
[1740293311810,17.66493385,171.53,171.52,0.063]
[1740293328339,17.66493385,171.53,171.51,0.063]
[1740293328546,92.83513385,171.52,171.51,0.063]
[1740293328714,11.83513385,171.52,171.49,0.063]
[1740293329038,11.83513385,171.51,171.49,0.063]
[1740293330444,5.8309,171.5,171.49,0.063]
[1740293332845,5.8302,171.52,171.49,0.063]
[1740293334749,5.8309,171.5,171.49,0.063]
[1740293339140,81.0,171.51,171.49,0.063]
[1740293339449,81.0,171.51,171.5,11.83513385]
[1740293346337,81.0,171.51,171.49,11.89813385]
[1740293348961,81.0,171.51,171.5,11.83513385]
[1740293352463,0.03,171.53,171.5,11.83513385]
[1740293352762,5.8599,171.53,171.51,11.83513385]
[1740293352937,5.8599,171.53,171.5,11.83513385]
[1740293353135,5.8599,171.53,171.5,0.063]
[1740293353362,0.03,171.51,171.5,0.063]
[1740293356759,0.03,171.51,171.5,11.89813385]
[1740293359069,0.03,171.51,171.5,17.72903385]
[1740293360465,0.03,171.51,171.5,36.37868271]
[1740293365970,0.03,171.51,171.5,44.18658271]
[1740293373357,0.03,171.51,171.5,126.08658271]
[1740293377859,0.03,171.51,171.5,127.08658271]
[1740293378065,0.03,171.51,171.5,128.08658271]
[1740293380490,0.03,171.51,171.5,127.08658271]
[1740293380665,0.03,171.51,171.5,128.08658271]
[1740293382789,0.03,171.51,171.5,127.08658271]
[1740293383288,0.03,171.51,171.5,132.44272051]
[1740293383488,0.03,171.51,171.5,133.44272051]
[1740293383865,0.03,171.51,171.5,126.08658271]
[1740293384087,0.03,171.51,171.5,128.08658271]
[1740293394277,0.03,171.51,171.5,127.08658271]
[1740293394477,0.03,171.51,171.5,128.08658271]
[1740293394902,0.03,171.53,171.51,19.64964886]
[1740293395081,0.03,171.53,171.52,30.48478271]
[1740293396388,0.03,171.53,171.52,36.31498271]
[1740293400005,0.03,171.53,171.52,118.21498271]
[1740293402285,0.03,171.53,171.52,122.45498271]
[1740293406012,0.03,171.53,171.52,40.55498271]
[1740293406313,0.03,171.53,171.52,34.72478271]
[1740293406624,0.03,171.53,171.5,0.063]
[1740293406625,0.03,171.53,171.5,11.89813385]
[1740293406789,0.03,171.53,171.5,0.063]
[1740293407112,0.03,171.53,171.5,11.89813385]
[1740293408410,0.03,171.53,171.5,0.063]
[1740293408587,0.03,171.53,171.5,11.89813385]
[1740293409428,0.03,171.53,171.51,11.83513385]
[1740293411325,0.03,171.53,171.52,11.83513385]
[1740293412193,0.03,171.53,171.51,11.83513385]
[1740293412613,0.03,171.53,171.5,11.89813385]
[1740293412813,0.03,171.53,171.5,0.063]
[1740293413921,13.20903385,171.53,171.5,0.063]
[1740293414610,86.8302,171.52,171.5,0.063]
[1740293416111,98.66533385,171.52,171.5,0.063]
[1740293416415,11.83513385,171.51,171.5,0.063]
[1740293416616,98.66563385,171.51,171.5,0.063]
[1740293421422,86.8305,171.51,171.5,0.063]
[1740293423516,81.0,171.51,171.5,0.063]
[1740293423918,86.8599,171.53,171.5,11.89813385]
[1740293426203,0.03,171.53,171.52,11.83513385]
[1740293428630,0.03,171.53,171.51,11.83513385]
[1740293433335,0.03,171.53,171.52,11.83513385]
[1740293436137,0.03,171.53,171.5,5.8938]
[1740293436138,0.03,171.53,171.51,11.83513385]
[1740293441612,0.03,171.53,171.52,11.83513385]
[1740293447248,0.03,171.53,171.52,36.31498271]
[1740293447434,0.03,171.53,171.52,30.48478271]
[1740293450250,0.03,171.53,171.52,36.31498271]
[1740293451255,0.03,171.53,171.52,30.48478271]
[1740293454652,0.03,171.53,171.52,36.31498271]
[1740293458658,0.03,171.53,171.52,30.48478271]
[1740293458840,0.03,171.53,171.51,11.89813385]
[1740293460648,0.03,171.53,171.51,0.063]
[1740293461865,0.03,171.53,171.52,11.83513385]
[1740293462759,0.03,171.53,171.51,11.89813385]
[1740293465467,0.03,171.53,171.51,0.063]
[1740293465844,5.8598,171.53,171.51,0.063]
[1740293466961,0.03,171.53,171.51,11.89813385]
[1740293467163,0.03,171.53,171.52,11.83513385]
[1740293468269,0.03,171.53,171.52,36.31498271]
[1740293469648,3.03,171.53,171.52,36.31498271]
[1740293470054,3.03,171.53,171.52,11.83513385]
[1740293470366,8.8599,171.53,171.51,0.063]
[1740293472354,11.8599,171.53,171.51,0.063]
[1740293474368,92.8599,171.53,171.51,0.063]
[1740293474752,104.69503385,171.53,171.51,0.063]
[1740293476367,107.69503385,171.53,171.51,0.063]
[1740293476570,11.83513385,171.52,171.51,0.063]
[1740293478676,107.69503385,171.53,171.51,0.063]
[1740293479377,95.8599,171.53,171.51,0.063]
[1740293482756,95.8599,171.53,171.51,11.89813385]
[1740293483477,90.03,171.53,171.51,11.89813385]
[1740293485560,93.03,171.53,171.52,11.83513385]
[1740293486277,12.03,171.53,171.52,11.83513385]
[1740293489480,12.03,171.53,171.52,17.66533385]
[1740293490367,12.03,171.53,171.52,36.31498271]
[1740293493882,12.03,171.53,171.52,11.83513385]
[1740293494073,12.03,171.53,171.51,30.54778271]
[1740293494891,12.03,171.53,171.51,11.89813385]
[1740293495090,12.03,171.53,171.52,20.0]
[1740293495569,12.03,171.53,171.52,50.48478271]
[1740293496095,12.03,171.53,171.52,31.83513385]
[1740293497171,12.03,171.53,171.52,56.31498271]
[1740293497373,12.03,171.53,171.52,62.84908271]
[1740293499274,0.35710717,171.53,171.52,62.84908271]
[1740293501176,0.35710717,171.53,171.52,144.74908271]
[1740293505705,0.38710717,171.53,171.52,144.74908271]
[1740293506681,0.03,171.56,171.55,20.0]
[1740293506901,0.03,171.56,171.55,50.48478271]
[1740293509602,0.03,171.56,171.55,56.31398271]
[1740293513488,0.03,171.56,171.55,59.26250304]
[1740293520814,0.03,171.56,171.55,41.59816919]
[1740293521118,0.03,171.56,171.55,59.26250304]
[1740293521696,0.03,171.56,171.55,53.43330304]
[1740293522819,0.03,171.56,171.55,59.26250304]
[1740293526013,0.03,171.56,171.55,18.64964886]
[1740293526401,0.03,171.56,171.55,20.0]
[1740293526997,0.03,171.56,171.53,18.71264886]
[1740293527616,0.03,171.56,171.53,0.063]
[1740293530603,11.86513385,171.56,171.53,0.063]
[1740293530809,11.83513385,171.54,171.53,0.063]
[1740293531614,92.83513385,171.54,171.53,0.063]
[1740293532027,94.17903385,171.54,171.53,0.063]
[1740293532617,100.00853385,171.54,171.53,0.063]
[1740293533199,11.83513385,171.52,171.51,0.063]
[1740293534609,17.66533385,171.52,171.51,0.063]
[1740293537214,18.66533385,171.52,171.51,0.0001]
[1740293538625,17.66533385,171.52,171.51,0.0001]
[1740293539007,18.66533385,171.52,171.51,0.0001]
[1740293539730,17.66533385,171.52,171.51,0.0001]
[1740293540029,18.66533385,171.52,171.51,0.0001]
[1740293540332,17.66533385,171.52,171.51,0.0001]
[1740293541532,17.69533385,171.52,171.51,0.0001]
[1740293555631,5.8602,171.52,171.51,0.0001]
[1740293555931,17.69533385,171.52,171.51,0.0001]
[1740293557537,5.8602,171.52,171.51,0.0001]
[1740293557743,11.86513385,171.52,171.51,0.0001]
[1740293558936,0.03,171.52,171.51,0.0001]
[1740293573933,0.03,171.52,171.51,13.34973385]
[1740293575250,0.03,171.52,171.51,1.5146]
[1740293579960,11.86513385,171.52,171.51,0.0001]
[1740293583264,17.69533385,171.52,171.51,0.0001]
[1740293585361,0.03,171.52,171.51,0.0001]
[1740293587348,0.03,171.52,171.51,11.83523385]
[1740293589137,0.03,171.52,171.51,30.48488271]
[1740293589339,0.03,171.52,171.51,42.65438271]
[1740293589762,0.03,171.52,171.51,44.30138271]
[1740293591753,0.03,171.52,171.51,47.20097779]
[1740293592462,0.03,171.52,171.51,41.37047779]
[1740293592859,0.03,171.52,171.51,19.82123385]
[1740293593069,0.03,171.52,171.51,1.6471]
[1740293594949,11.86513385,171.52,171.51,0.0001]
[1740293596169,17.69533385,171.52,171.51,0.0001]